bitfinex/quotes_SOLUSD_20241001
["timestamp","ask_amount","ask_price","bid_price","bid_amount"]
[1727803279753,4.75826856,143.92,143.64,17.4045]
[1727803279754,6.9557,143.77,143.64,17.4045]
[1727803279915,17.3759,143.88,143.72,6.9575]
[1727803280116,6.9545,143.79,143.68,17.3995]
[1727803280316,50.0,143.89,143.71,6.9583]
[1727803280317,8.69426424,143.87,143.71,6.9583]
[1727803280520,17.3753,143.89,143.72,24.3525]
[1727803280844,0.65269753,143.91,143.55,386.48240373]
[1727803280845,6.9591,143.7,143.55,441.88088134]
[1727803281011,58.69426424,143.74,143.55,359.34321481]
[1727803281210,10.15113161,143.78,143.55,352.37721481]
[1727803281413,17.3838,143.82,143.61,54.67266653]
[1727803281611,0.65269753,143.85,143.69,17.3982]
[1727803281810,6.9525,143.84,143.75,6.9562]
[1727803282034,34.75,143.89,143.73,17.3936]
[1727803282240,6.9518,143.85,143.77,17.3887]
[1727803282448,7.64126424,143.88,143.72,17.3942]
[1727803282614,0.65269753,143.9,143.7,6.2329]
[1727803282811,6.9533,143.82,143.73,6.9571]
[1727803283424,25.66726177,143.9,143.75,17.3912]
[1727803283425,7.64126424,143.9,143.75,17.3912]
[1727803283617,0.65269753,144.01,143.76,47.71305288]
[1727803283815,7.97600003,144.21,143.82,23.776884]
[1727803283816,50.65269753,144.04,143.82,23.776884]
[1727803284048,73.776884,144.03,143.81,6.2937]
[1727803284216,6.9475,143.94,143.85,6.9515]
[1727803284563,6.9466,143.96,143.85,6.9514]
[1727803284770,50.0,144.0,143.82,41.158684]
[1727803285073,17.3597,144.02,143.81,6.2937]
[1727803285074,6.95,143.89,143.81,6.2937]
[1727803285263,6.95,143.89,143.68,6.2019]
[1727803285264,50.0,143.88,143.68,6.2019]
[1727803285443,20.0,143.87,143.7,17.3973]
[1727803285761,7.64126424,143.88,143.7,17.3973]
[1727803285762,20.0,143.85,143.7,17.3973]
[1727803285965,6.9547,143.79,143.7,24.356]
[1727803286262,20.0,143.85,143.68,6.2019]
[1727803286263,20.0,143.8,143.68,6.2019]
[1727803286469,20.0,143.73,143.56,6.2019]
[1727803286643,20.0,143.71,143.56,6.2019]
[1727803286834,6.9654,143.57,143.55,352.37721481]
[1727803287040,20.0,143.56,143.55,242.36933543]
[1727803287939,20.0,143.56,143.55,229.40245888]
[1727803288141,70.0,143.56,143.55,220.52495888]
[1727803288377,70.65269753,143.56,143.55,136.21458025]
[1727803288667,70.65269753,143.56,143.44,0.3279621]
[1727803288668,24.3997,143.45,143.44,0.8658766]
[1727803288972,6.9735,143.4,143.39,3.96705671]
[1727803289152,6.9735,143.4,143.39,3.46705671]
[1727803289462,22.67,143.5,143.39,3.46705671]
[1727803289463,50.0,143.49,143.39,3.46705671]
[1727803289677,6.9723,143.43,143.39,3.46705671]
[1727803289840,9.9102698,143.48,143.39,3.46705671]
[1727803289841,59.9102698,143.48,143.39,3.46705671]
[1727803290042,6.9732,143.41,143.39,3.46705671]
[1727803290339,6.9759,143.35,143.32,0.0349]
[1727803290542,60.41582535,143.41,143.32,0.0349]
[1727803290740,6.9755,143.36,143.32,0.0349]
[1727803290966,20.0,143.35,143.32,0.0349]
[1727803291642,20.0,143.39,143.32,0.0349]
[1727803291966,6.9736,143.4,143.32,0.0349]
[1727803292175,50.0,143.45,143.32,0.0349]
[1727803292176,50.0,143.49,143.32,0.0349]
[1727803292373,50.0,143.49,143.35,17.4397]
[1727803292545,56.9694,143.49,143.39,6.9736]
[1727803292743,50.0,143.49,143.36,6.506]
[1727803293048,50.0,143.49,143.42,6.9723]
[1727803293243,50.0,143.52,143.36,6.506]
[1727803293462,17.4337,143.51,143.36,6.506]
[1727803293647,6.9688,143.5,143.41,6.9727]
[1727803293849,6.9669,143.54,143.45,6.9708]
[1727803294062,6.506,143.53,143.43,17.4289]
[1727803294264,6.9692,143.49,143.4,6.9732]
[1727803294474,6.506,143.53,143.36,6.506]
[1727803294645,6.9683,143.51,143.42,24.4035]
[1727803294846,6.506,143.53,143.42,17.4312]
[1727803295167,43.60776964,143.59,143.42,17.4312]
[1727803295168,6.9682,143.51,143.42,17.4312]
[1727803295368,67.412,143.58,143.36,6.506]
[1727803295578,67.412,143.58,143.41,17.4317]
[1727803295579,8.78436964,143.57,143.41,17.4317]
[1727803295757,50.0,143.51,143.36,6.506]
[1727803295952,6.9698,143.48,143.39,6.9738]
[1727803296142,6.9698,143.48,143.36,23.9434]
[1727803296143,58.78436964,143.57,143.36,6.506]
[1727803296347,8.78436964,143.57,143.44,17.4288]
[1727803296550,50.0,143.65,143.52,17.419]
[1727803296767,17.4312,143.66,143.52,17.419]
[1727803296981,17.4312,143.66,143.51,15.7113]
[1727803296982,50.0,143.64,143.51,15.7113]
[1727803297188,50.0,143.61,143.51,15.7113]
[1727803297473,6.9635,143.61,143.52,6.9675]
[1727803297675,50.0,143.65,143.52,17.4184]
[1727803297863,25.91418297,143.65,143.52,17.4184]
[1727803298049,6.9654,143.57,143.51,15.7113]
[1727803298368,6.9653,143.57,143.51,15.7113]
[1727803298669,25.90048297,143.6,143.51,15.7113]
[1727803298868,6.9653,143.57,143.51,15.7113]
[1727803299067,8.49048297,143.6,143.51,15.7113]
[1727803299068,26.9645,143.59,143.51,15.7113]
[1727803299374,20.0,143.59,143.51,15.7113]
[1727803299552,8.49048297,143.63,143.51,15.7113]
[1727803299553,8.49048297,143.63,143.54,6.9663]
[1727803299750,6.9625,143.63,143.55,6.966]
[1727803300053,60.59963408,143.67,143.54,6.3708]
[1727803300255,50.0,143.65,143.54,6.3708]
[1727803300459,6.964,143.6,143.54,6.3708]
[1727803300675,8.39373408,143.64,143.54,6.3708]
[1727803301187,6.9622,143.64,143.56,6.9655]
[1727803301480,56.9602,143.68,143.58,6.9644]
[1727803301665,6.9653,143.57,143.42,6.6046]
[1727803301864,6.9653,143.57,143.49,6.969]
[1727803302070,50.0,143.62,143.46,24.3954]
[1727803302275,6.968,143.52,143.42,13.577]
[1727803302587,6.9687,143.5,143.42,6.6046]
[1727803302883,37.4177,143.54,143.42,6.6046]
[1727803303054,23.776884,143.52,143.42,6.6046]
[1727803303384,6.973,143.41,143.39,15.6041]
[1727803303683,43.776884,143.49,143.39,15.6041]
[1727803304059,50.0,143.57,143.41,6.9728]
[1727803304362,9.1159563,143.56,143.44,6.9714]
[1727803304562,6.9648,143.58,143.44,34.8565]
[1727803304772,6.9683,143.51,143.44,17.4283]
[1727803304951,17.4138,143.57,143.44,17.4283]
[1727803305150,52.2265,143.61,143.44,17.4283]
[1727803305355,9.1159563,143.6,143.5,6.9685]
[1727803305582,9.1159563,143.6,143.48,6.239]
[1727803305583,6.9665,143.55,143.48,6.239]
[1727803305765,6.9656,143.57,143.49,6.9689]
[1727803306078,6.9648,143.58,143.5,24.3891]
[1727803306382,59.1159563,143.62,143.41,23.7055394]
[1727803306588,6.9666,143.55,143.41,21.7055394]
[1727803306881,17.4111,143.59,143.36,57.31518848]
[1727803307182,9.1159563,143.57,143.44,6.9714]
[1727803307350,17.4111,143.59,143.47,6.9699]
[1727803307552,29.1159563,143.58,143.39,50.4724]
[1727803307750,20.0,143.55,143.41,17.432]
[1727803307954,20.0,143.55,143.39,15.6041]
[1727803307955,17.4193,143.52,143.39,15.6041]
[1727803308185,20.0,143.51,143.39,33.0381]
[1727803308352,6.9699,143.48,143.39,33.0381]
[1727803308555,9.3352604,143.61,143.39,70.91928848]
[1727803308759,50.0,143.67,143.45,34.8549]
[1727803308982,84.8124,143.65,143.51,17.42]
[1727803309190,84.8124,143.65,143.5,6.9682]
[1727803309191,6.9644,143.59,143.5,6.9682]
[1727803309360,6.966,143.56,143.48,6.9695]
[1727803309690,17.408,143.62,143.46,23.8089]
[1727803309872,6.964,143.6,143.51,6.9678]
[1727803310067,6.9617,143.65,143.56,6.9656]
[1727803310255,0.65269753,143.68,143.55,16.2921]
[1727803310453,6.9616,143.65,143.57,6.9652]
[1727803310669,0.65269753,143.74,143.55,16.2921]
[1727803310885,8.239,143.83,143.55,16.2921]
[1727803310886,17.3863,143.8,143.63,17.4054]
[1727803311093,6.9608,143.67,143.58,6.9646]
[1727803311256,6.9573,143.74,143.66,6.9607]
[1727803311578,50.0,143.81,143.66,6.9607]
[1727803311579,6.9568,143.75,143.66,6.9608]
[1727803311783,17.3845,143.81,143.66,17.4012]
[1727803312281,6.956,143.76,143.68,6.9598]
[1727803312475,6.9595,143.69,143.62,17.4068]
[1727803312657,6.9592,143.7,143.61,6.9632]
[1727803312861,50.0,143.75,143.52,2.0]
[1727803313180,6.9605,143.67,143.58,6.9646]
[1727803313361,17.3942,143.73,143.58,17.4111]
[1727803313787,17.3982,143.7,143.53,17.4173]
[1727803313961,17.3982,143.7,143.57,13.1957]
[1727803314168,6.9615,143.65,143.57,6.2306]
[1727803314364,6.961,143.66,143.57,13.1957]
[1727803314567,50.0,143.77,143.57,13.1957]
[1727803314568,20.0,143.77,143.57,6.2306]
[1727803314766,6.96,143.68,143.59,6.9637]
[1727803314969,6.962,143.64,143.57,6.2306]
[1727803315167,6.9614,143.65,143.57,13.1958]
[1727803315366,6.9614,143.65,143.57,13.1954]
[1727803315590,35.42809753,143.78,143.58,55.31518848]
[1727803315883,7.11845215,143.81,143.67,6.96]
[1727803316092,8.239,143.92,143.64,55.31518848]
[1727803316093,7.11845215,143.86,143.64,55.31518848]
[1727803316263,77.894243,143.87,143.57,6.2306]
[1727803316264,50.0,143.8,143.58,23.776884]
[1727803316464,7.11845215,143.8,143.61,6.9631]
[1727803316663,17.3927,143.74,143.62,6.9627]
[1727803316966,34.7736,143.79,143.6,23.776884]
[1727803316967,6.9599,143.68,143.6,23.776884]
[1727803317164,6.9588,143.71,143.61,17.4077]
[1727803317360,17.3915,143.75,143.61,17.4077]
[1727803317586,6.9599,143.69,143.61,17.4077]
[1727803317891,17.3915,143.75,143.61,17.4077]
[1727803318070,6.9586,143.71,143.61,17.4077]
[1727803318265,6.957,143.74,143.66,6.9608]
[1727803318576,33.38124516,143.73,143.57,68.51048848]
[1727803318778,47.3211409,143.72,143.6,6.9637]
[1727803319080,47.3211409,143.72,143.57,61.54578848]
[1727803319081,60.02721301,143.71,143.59,17.4104]
[1727803319399,59.98608081,143.7,143.64,6.9618]
[1727803319568,12.84515835,143.69,143.65,17.4033]
[1727803319766,11.8248384,143.68,143.67,6.9603]
[1727803319982,6.40494126,143.73,143.68,17.3997]
[1727803320183,24.44164119,143.74,143.65,6.9609]
[1727803320363,24.44164119,143.74,143.64,55.31518848]
[1727803320564,24.44164119,143.74,143.62,34.8121]
[1727803320565,24.44164119,143.74,143.68,6.9594]
[1727803320793,15.36674119,143.74,143.73,6.9574]
[1727803320995,1.0253231,143.89,143.74,23.776884]
[1727803321205,1.0253231,143.89,143.74,96.48367248]
[1727803321361,6.9546,143.79,143.71,55.31518848]
[1727803321560,85.7759231,143.89,143.68,0.8182]
[1727803321891,85.7759231,143.89,143.65,55.31518848]
[1727803321892,17.3888,143.78,143.65,55.31518848]
[1727803322109,20.98554248,143.86,143.68,55.31518848]
[1727803322408,35.7759231,143.89,143.68,55.31518848]
[1727803322409,34.7602,143.85,143.68,55.31518848]
[1727803322710,6.9609,143.66,143.59,55.31518848]
[1727803323007,20.67,143.75,143.51,6.4645]
[1727803323180,20.67,143.72,143.42,6.4609]
[1727803323381,20.0,143.58,143.42,23.8918]
[1727803323783,6.9682,143.51,143.42,17.4309]
[1727803324017,20.0,143.56,143.42,17.4309]
[1727803324306,20.0,143.52,143.38,17.4357]
[1727803324507,6.9726,143.42,143.34,0.2194643]
[1727803324809,20.0,143.52,143.34,0.2194643]
[1727803324810,6.9746,143.38,143.34,0.2194643]
[1727803324988,77.59245382,143.52,143.34,0.2194643]
[1727803324989,6.975,143.37,143.34,0.2194643]
[1727803325186,6.9756,143.36,143.34,0.2194643]
[1727803325703,34.8602,143.44,143.34,0.2194643]
[1727803325906,20.0,143.45,143.34,0.2194643]
[1727803326295,6.9756,143.36,143.34,0.2194643]
[1727803326515,20.0,143.35,143.34,0.2194643]
[1727803327008,6.9769,143.33,143.26,1.0253231]
[1727803327306,26.9769,143.33,143.26,1.0253231]
[1727803327609,6.9798,143.27,143.26,1.0253231]
[1727803327821,26.9798,143.27,143.26,1.0253231]
[1727803328108,67.4427,143.33,143.1,62.30288848]
[1727803328109,6.9828,143.21,143.1,62.30288848]
[1727803328323,17.4455,143.31,143.15,30.0]
[1727803328483,20.0,143.3,143.15,30.0]
[1727803328883,6.9844,143.18,143.15,30.0]
[1727803329083,34.8916,143.31,143.15,30.0]
[1727803329305,20.0,143.25,143.15,30.0]
[1727803329484,6.984,143.19,143.15,30.0]
[1727803329707,50.0,143.26,143.15,30.0]
[1727803329919,6.9849,143.17,143.07,1.0176543]
[1727803330207,9.30466295,143.29,143.11,55.31518848]
[1727803330407,50.0,143.4,143.14,55.64315058]
[1727803330719,50.0,143.33,143.14,0.3279621]
[1727803330913,6.9844,143.18,143.14,0.3279621]
[1727803331233,67.4498,143.27,143.14,0.3279621]
[1727803331521,17.4545,143.23,143.14,0.3279621]
[1727803331942,26.9856,143.15,143.14,0.3279621]
[1727803332101,6.9856,143.15,143.14,0.3279621]
[1727803332525,26.9856,143.15,143.14,0.3279621]
[1727803332728,20.0,143.14,143.07,1.0176543]
[1727803332914,50.0,143.18,143.07,1.0176543]
[1727803333115,20.0,143.08,143.07,1.0176543]
[1727803333623,6.9887,143.09,143.07,1.0176543]
[1727803333828,17.4643,143.15,143.07,1.0176543]
[1727803334017,20.0,143.11,143.07,1.0176543]
[1727803334212,6.9889,143.09,143.07,1.0176543]
[1727803334529,43.6971736,143.19,143.01,10.4476584]
[1727803334530,6.9905,143.05,143.01,10.4476584]
[1727803334733,20.0,143.08,143.01,10.4476584]
[1727803334734,20.0,143.02,143.01,10.4476584]
[1727803334904,20.0,143.02,142.85,1.492316]
[1727803335110,20.0,143.02,142.86,17.62472113]
[1727803335333,6.9936,142.99,142.88,6.9986]
[1727803335639,20.0,143.06,142.9,17.4944]
[1727803335833,6.9945,142.97,142.91,0.15234572]
[1727803336037,6.9957,142.95,142.9,0.15234572]
[1727803336219,20.0,142.95,142.9,0.15234572]
[1727803336419,8.7784736,143.0,142.86,0.15234572]
[1727803336621,6.9938,142.99,142.88,6.9987]
[1727803336818,20.0,142.95,142.86,0.15234572]
[1727803337014,15.1752,143.03,142.87,0.15234572]
[1727803337015,6.9968,142.93,142.87,0.15234572]
[1727803337219,20.0,142.97,142.86,0.15234572]
[1727803337521,20.0,143.02,142.85,1.492316]
[1727803337727,20.0,143.02,142.86,72.9659342]
[1727803338028,6.9936,142.99,142.89,6.9982]
[1727803338237,22.1669,143.03,142.92,6.9966]
[1727803338454,2.0,143.13,142.92,55.31518848]
[1727803338455,22.5173,143.12,142.92,55.31518848]
[1727803338617,29.5047,143.12,143.01,6.9923]
[1727803338943,0.65269753,143.28,142.91,34.9855]
[1727803338944,6.9883,143.1,143.0,24.4742]
[1727803339128,6.9889,143.09,143.0,24.4742]
[1727803339331,50.0,143.17,143.01,6.9924]
[1727803339332,6.9879,143.11,143.01,6.9924]
[1727803339627,17.4653,143.15,143.0,17.4813]
[1727803339836,9.03460772,143.15,143.0,24.4739]
[1727803340035,6.9892,143.08,142.98,6.9936]
[1727803340223,6.9892,143.08,142.97,1.0]
[1727803340419,6.9868,143.13,143.04,6.9908]
[1727803340729,6.9923,143.02,142.97,1.0]
[1727803340929,50.0,143.27,143.01,121.58510667]
[1727803341234,50.0,143.27,143.12,17.4675]
[1727803341555,50.0,143.23,143.05,6.9904]
[1727803341749,50.0,143.28,143.1,17.47]
[1727803341915,78.008767,143.28,143.1,17.47]
[1727803342116,6.9843,143.18,143.1,17.47]
[1727803342431,6.9843,143.18,142.99,11.14941003]
[1727803342432,17.4537,143.24,143.05,17.4759]
[1727803342631,17.4537,143.24,142.88,40.76518419]
[1727803342632,23.6595,143.16,142.95,55.31518848]
[1727803342825,23.6595,143.16,142.88,61.48178848]
[1727803342826,50.0,143.12,142.9,55.31518848]
[1727803343115,6.1964,143.16,142.88,6.1666]
[1727803343116,6.1964,143.16,142.99,55.31518848]
[1727803343419,6.6034,143.24,143.06,17.4745]
[1727803343619,6.6034,143.24,143.05,55.31518848]
[1727803343620,6.9827,143.21,143.11,6.9875]
[1727803343940,6.6034,143.24,143.04,17.4769]
[1727803343941,6.9859,143.15,143.04,17.4769]
[1727803344265,6.9853,143.16,143.05,6.9904]
[1727803344541,67.4582,143.2,142.99,32.9924]
[1727803344764,67.4582,143.2,142.99,39.9855]
[1727803344942,17.4639,143.16,142.99,17.4826]
[1727803345261,6.9874,143.12,143.02,6.9917]
[1727803345438,6.9858,143.15,143.05,6.9903]
[1727803345636,20.0,143.18,143.03,17.4786]
[1727803345835,20.0,143.12,143.03,17.4786]
[1727803346636,20.0,143.12,142.98,17.484]
[1727803346849,20.0,143.12,142.97,1.0]
[1727803347166,6.9887,143.09,142.98,17.484]
[1727803347465,7.72875298,143.16,143.0,55.31518848]
[1727803347757,0.65269753,143.19,142.97,56.31518848]
[1727803347758,0.65269753,143.19,143.01,17.48]
[1727803347982,6.9874,143.12,143.02,6.9918]
[1727803348257,6.9868,143.13,143.03,6.9911]
[1727803348564,0.65269753,143.19,143.05,17.4751]
[1727803348856,24.0574,143.24,143.05,17.4751]
[1727803348857,6.9831,143.21,143.1,6.9879]
[1727803349041,6.9831,143.21,143.11,6.9874]
[1727803349246,0.65269753,143.23,143.13,17.4664]
[1727803349442,6.9829,143.21,143.11,6.9874]
[1727803349748,6.9829,143.21,143.06,23.776884]
[1727803349749,6.9821,143.23,143.09,23.776884]
[1727803349953,18.10079753,143.29,143.12,17.4676]
[1727803350167,6.7071,143.32,143.13,23.776884]
[1727803350348,6.9821,143.29,143.17,6.9844]
[1727803350544,6.7071,143.32,143.16,17.4627]
[1727803350750,6.9793,143.28,143.16,17.4627]
[1727803350956,6.7071,143.32,143.16,17.4627]
[1727803351260,6.9843,143.18,143.08,6.9889]
[1727803351460,17.451,143.26,143.06,34.9501]
[1727803351639,6.9853,143.16,143.06,6.9899]
[1727803351841,6.9853,143.16,143.05,17.4754]
[1727803351842,20.0,143.16,143.05,17.4754]
[1727803352153,20.0,143.16,142.89,34.05211541]
[1727803352154,6.9885,143.1,143.0,17.4818]
[1727803352351,6.9193,143.31,143.05,55.31518848]
[1727803352738,50.0,143.27,143.05,6.9904]
[1727803353038,50.0,143.18,142.98,17.4841]
[1727803353350,17.4707,143.1,142.97,1.0]
[1727803353544,6.9903,143.06,142.97,1.0]
[1727803353753,23.776884,143.09,142.97,1.0]
[1727803353932,6.9918,143.03,142.97,1.0]
[1727803354137,6.9193,143.09,142.97,1.0]
[1727803354356,6.9937,142.99,142.97,1.0]
[1727803354561,6.9936,142.99,142.97,1.0]
[1727803354943,37.4736,143.08,142.97,1.0]
[1727803355141,6.9917,143.03,142.97,1.0]
[1727803355443,58.0823,143.09,142.97,1.0]
[1727803355444,6.9898,143.07,142.97,7.9942]
[1727803355762,6.9193,143.09,142.97,1.0]
[1727803355937,17.5594,143.18,142.97,1.0]
[1727803355938,6.6453,143.16,143.02,6.9918]
[1727803356143,6.9873,143.12,143.02,6.9918]
[1727803356372,6.9873,143.12,142.97,56.31518848]
[1727803356373,6.6453,143.16,143.03,17.4786]
[1727803356846,6.9926,143.01,142.97,1.0]
[1727803357261,6.9922,143.02,142.97,1.0]
[1727803357563,6.9908,143.05,142.97,1.0]
[1727803357861,20.0,143.03,142.97,1.0]
[1727803358167,6.9937,142.99,142.97,1.0]
[1727803358351,20.0,142.96,142.86,24.4979]
[1727803358542,26.9952,142.96,142.86,24.4979]
[1727803359159,6.9959,142.95,142.86,17.4984]
[1727803359375,6.9959,142.95,142.86,24.4981]
[1727803359549,6.9959,142.95,142.86,17.4984]
[1727803360063,6.9935,142.99,142.88,6.9986]
[1727803360366,6.9926,143.01,142.91,6.9971]
[1727803360567,6.5355,143.08,142.9,17.4946]
[1727803360752,50.0,143.02,142.85,18.992116]
[1727803360948,52.4353,143.04,142.85,25.992016]
[1727803361152,34.9329,143.14,142.85,25.992016]
[1727803361153,23.6337,143.31,143.11,7.82366886]
[1727803361355,23.6337,143.31,143.11,2.0]
[1727803361356,73.4958,143.31,143.11,2.0]
[1727803361657,50.0,143.28,143.1,17.4692]
[1727803361852,73.4958,143.31,143.12,2.0]
[1727803362163,50.0,143.23,143.05,17.4753]
[1727803362464,50.0,143.26,143.13,2.0]
[1727803362671,34.8964,143.29,143.09,19.471]
[1727803362672,6.9848,143.17,143.09,19.471]
[1727803362966,50.0,143.24,143.07,2.0]
[1727803363171,6.985,143.17,143.07,8.9893]
[1727803363389,50.0,143.26,143.12,2.0]
[1727803363573,17.4498,143.27,143.15,2.0]
[1727803363878,34.8964,143.29,143.15,2.0]
[1727803364049,17.4442,143.32,143.18,2.0]
[1727803364251,6.9821,143.23,143.13,2.0]
[1727803364471,17.4442,143.32,143.12,24.4544]
[1727803364472,6.9809,143.25,143.17,2.0]
[1727803364648,6.9805,143.26,143.17,2.0]
[1727803364855,6.9805,143.26,143.19,2.0]
[1727803365078,6.5355,143.31,143.19,2.0]
[1727803365374,7.17951405,143.3,143.21,2.0]
[1727803365560,6.9806,143.26,143.18,2.0]
[1727803365749,6.9799,143.27,143.23,2.0]
[1727803365954,6.5355,143.31,143.2,2.0]
[1727803366176,6.9805,143.26,143.22,2.0]
[1727803366367,6.9796,143.28,143.22,2.0]
[1727803366553,34.8812,143.35,143.22,2.0]
[1727803366759,6.979,143.29,143.22,2.0]
[1727803367061,7.20940668,143.28,143.22,2.0]
[1727803367262,7.20940668,143.28,143.2,24.4408]
[1727803367263,24.4175,143.38,143.25,2.0]
[1727803367461,50.0,143.45,143.28,2.0]
[1727803367462,7.21374408,143.37,143.28,2.0]
[1727803367667,6.9771,143.33,143.28,2.0]
[1727803367858,7.21374408,143.32,143.3,2.0]
[1727803368055,6.492,143.45,143.3,2.0]
[1727803368268,12.79513704,143.44,143.3,2.0]
[1727803368470,12.79513704,143.44,143.27,2.0]
[1727803368471,50.0,143.42,143.27,2.0]
[1727803368669,17.4343,143.4,143.27,2.0]
[1727803368869,12.79513704,143.39,143.37,2.0]
[1727803369077,6.492,143.47,143.36,2.0]
[1727803369292,6.492,143.47,143.31,17.4446]
[1727803369293,6.9714,143.45,143.34,8.9761]
[1727803369580,7.25237197,143.44,143.36,2.0]
[1727803369772,6.9741,143.39,143.34,2.0]
[1727803369971,6.9765,143.34,143.29,2.0]
[1727803370173,6.9762,143.35,143.29,2.0]
[1727803370485,6.9752,143.37,143.29,2.0]
[1727803370654,7.2478644,143.36,143.35,2.0]
[1727803370855,6.9712,143.45,143.37,2.0]
[1727803371056,7.24927492,143.44,143.39,2.0]
[1727803371274,7.24927492,143.43,143.39,2.0]
[1727803371481,34.8454,143.5,143.39,2.0]
[1727803371482,7.24927492,143.42,143.39,2.0]
[1727803371664,6.9738,143.4,143.36,2.0]
[1727803371975,7.24927492,143.39,143.36,2.0]
[1727803372176,17.424,143.48,143.36,2.0]
[1727803372384,14.46147316,143.47,143.36,2.0]
[1727803372687,20.0,143.41,143.28,2.0]
[1727803372861,6.976,143.35,143.28,2.0]
[1727803373061,7.24390086,143.34,143.32,2.0]
[1727803373384,7.24390086,143.34,143.24,17.452]
[1727803373385,23.776884,143.34,143.28,2.0]
[1727803373562,23.776884,143.32,143.28,2.0]
[1727803373763,37.4326,143.41,143.24,17.452]
[1727803373764,7.23234379,143.31,143.3,2.0]
[1727803374264,20.0,143.41,143.3,2.0]
[1727803374265,6.975,143.37,143.3,2.0]
[1727803374462,34.8579,143.44,143.34,2.0]
[1727803374463,7.22514608,143.36,143.34,2.0]
[1727803374691,0.63741127,143.49,143.34,2.0]
[1727803374998,6.9734,143.41,143.35,2.0]
[1727803375304,12.76364979,143.4,143.37,2.0]
[1727803375480,12.76364979,143.4,143.34,6.9762]
[1727803375481,6.9718,143.44,143.39,2.0]
[1727803375802,50.0,143.51,143.35,2.0]
[1727803375803,24.28036465,143.43,143.35,2.0]
[1727803376004,17.424,143.48,143.33,2.0]
[1727803376005,6.9747,143.38,143.33,2.0]
[1727803376309,5.56027176,143.37,143.33,2.0]
[1727803376598,5.56027176,143.37,143.29,17.4464]
[1727803376599,5.56027176,143.36,143.35,2.0]
[1727803376813,6.9742,143.39,143.35,2.0]
[1727803376978,5.55652214,143.36,143.35,2.0]
[1727803377182,5.55652214,143.36,143.31,2.0]
[1727803377375,5.55652214,143.35,143.33,2.0]
[1727803377780,20.0,143.44,143.33,2.0]
[1727803378078,20.0,143.44,143.23,17.1892]
[1727803378079,20.0,143.42,143.3,2.0]
[1727803378310,6.9756,143.36,143.3,2.0]
[1727803378481,6.9756,143.36,143.32,2.0]
[1727803378879,54.8577,143.44,143.35,2.0]
[1727803379099,17.4279,143.45,143.27,17.4495]
[1727803379100,24.22428639,143.43,143.33,2.0]
[1727803379302,24.22428639,143.43,143.27,17.4495]
[1727803379303,6.9743,143.39,143.35,2.0]
[1727803379804,6.9751,143.37,143.33,2.0]
[1727803380099,5.54425003,143.42,143.33,2.0]
[1727803380100,17.4327,143.41,143.33,2.0]
[1727803380399,6.9775,143.32,143.3,2.0]
[1727803380613,6.9775,143.32,143.17,41.7075]
[1727803380614,6.9789,143.29,143.26,2.0]
[1727803380899,6.9771,143.33,143.28,2.0]
[1727803381103,20.0,143.36,143.33,2.0]
[1727803381314,20.0,143.36,143.17,6.7854]
[1727803381315,6.9737,143.4,143.36,2.0]
[1727803381601,17.4258,143.47,143.36,2.0]
[1727803381786,18.66889509,143.46,143.38,2.0]
[1727803381996,5.54522095,143.39,143.38,2.0]
[1727803382311,91.8396,143.54,143.44,2.0]